[Event "24th Hoogeschool Zeeland 2022"]
[Site "Vlissingen"]
[Date "2022.08.13"]
[Round "9.13"]
[White "Grochal, Joey"]
[Black "Krause, Thomas"]
[Result "1/2-1/2"]
[ECO "E91"]
[WhiteElo "2290"]
[BlackElo "2137"]
[Annotator "TA"]
[PlyCount "63"]
[EventDate "2022.08.05"]
[EventType "swiss"]
[EventCountry "NED"]
[SourceTitle "playchess.com"]
[Source "ChessBase"]
[SourceQuality "1"]
[TimeControl "40/5400+30:1800+30"]

{[%evp 16,63,36,36,36,31,45,0,0,0,12,-25,43,27,35,-74,-64,-85,-10,-10,-9,-9,-5,-36,-45,-50,-13,-105,-103,-92,-89,-97,-102,-80,-44,-47,-44,-77,-12,-12,0,0,0,0,0,0,0,0,0,0]} 1. d4 {[%emt 0:00:04]} g6 {[%emt 0:00:18]} 2. c4 {[%emt 0:00:10]} Bg7 {[%emt 0:00:06]} 3. Nf3 {[%emt 0:00:21]} d6 {[%emt 0:00:20]} 4. e4 {[%emt 0:00:29]} Nf6 {[%emt 0:02:38]} 5. Nc3 {[%emt 0:00:18]} O-O {[%emt 0:00:13]} 6. Be2 {[%emt 0:00:18]} Nbd7 {[%emt 0:00:19]} 7. Bg5 {[%emt 0:01:31]} h6 {[%emt 0:04:08]} 8. Bh4 {[%emt 0:03:17]} c5 {[%emt 0:08:25]} 9. d5 {[%emt 0:01:35]} g5 {[%emt 0:01:25] E91: King's Indian: Classical: 6 Be2, unusual replies including 6...c5 and 6...Bg4.} 10. Bg3 {[%emt 0:00:11]} Nh5 {[%emt 0:00:49]} 11. O-O {[%emt 0:10:44]} Nxg3 {[%emt 0:00:38]} 12. hxg3 {[%emt 0:00:23]} a6 {[%emt 0:10:37]} 13. Ne1 {[%emt 0:03:13][%cal Bf3e1,Be1c2,Bc2e3,Be3f5,Bf5h6,Bh6g4][%mdl 32] [#]} b5 $146 {[%emt 0:17:42]} (13... Qa5 $11) ({Predecessor:} 13... Qa5 14. Qc2 Rb8 15. a4 Ne5 16. f4 Ng4 17. Bxg4 Bxg4 18. Nd3 Bd4+ 19. Kh1 f6 {½-½ (41) Bondar,P (1986)-Gawronek,J (1974) Poland 2008}) 14. cxb5 $14 {[%emt 0:02:47]} Qa5 {[%emt 0:02:36]} 15. Qc1 {[%emt 0:04:55]} (15. a4 $14 {stays ahead.}) 15... axb5 $17 {[%emt 0:05:04]} 16. Nxb5 {[%emt 0:02:12]} Ba6 {[%emt 0:07:03]} (16... Nb6 $17 17. Nf3 Na4) 17. a4 $11 {[%emt 0:00:56]} Qb4 {[%emt 0:05:12][%csl LRb2,LRe4]} 18. Nc2 {[%emt 0:08:35]} Qxb2 {[%emt 0:05:27]} 19. Qxb2 {[%emt 0:00:36]} Bxb2 {[%emt 0:00:05]} 20. Rab1 {[%emt 0:01:20]} Bg7 {[%emt 0:01:49]} 21. Rfe1 {[%emt 0:03:35]} (21. Ne3 $11 {remains equal.}) 21... Bc8 $17 {[%emt 0:03:04]} 22. Ne3 {[%emt 0:00:29]} Rxa4 {[%emt 0:04:04]} 23. Nf5 {[%emt 0:00:31] [#]} Bf6 {[%emt 0:07:21]} ({Don't play} 23... Rxe4 $6 24. Bf3 Rxe1+ 25. Rxe1 $11) 24. Nxh6+ {[%emt 0:00:17]} Kh7 {[%emt 0:00:15]} 25. Ng4 {[%emt 0:02:21]} Bg7 {[%emt 0:02:57]} 26. Bd1 {[%emt 0:09:12]} Rb4 {[%emt 0:00:31]} (26... Ra5 $17 {Threatens to win with ...Ba6.} 27. Bc2 Ne5) 27. Bc2 $11 {[%emt 0:01:47] The position is equal.} Ne5 {[%emt 0:04:56]} 28. Rxb4 {[%emt 0:03:54]} cxb4 {[%emt 0:00:02]} 29. Nxe5 {[%emt 0:00:15]} Bxe5 {[%emt 0:00:03]} 30. Rb1 {[%emt 0:00:09]} Bd7 {[%emt 0:01:02]} 31. Rxb4 {[%emt 0:00:33]} Rc8 {[%emt 0:01:42]} 32. Bd3 {[%emt 0:03:42] Weighted Error Value: White=0.26 (precise) /Black=0.21 (precise)} 1/2-1/2

[Event "24th Hoogeschool Zeeland 2022"]
[Site "Vlissingen"]
[Date "2022.08.13"]
[Round "9.14"]
[White "Zevenhuizen, Daniel"]
[Black "Ollenberger, Roland"]
[Result "1-0"]
[ECO "A04"]
[WhiteElo "2168"]
[BlackElo "2264"]
[Annotator "TA"]
[PlyCount "153"]
[EventDate "2022.08.05"]
[EventType "swiss"]
[EventCountry "NED"]
[SourceTitle "playchess.com"]
[Source "ChessBase"]
[SourceQuality "1"]
[TimeControl "40/5400+30:1800+30"]

{[%evp 11,153,3,26,11,35,13,12,-6,-8,-6,18,16,20,18,31,25,33,27,27,31,24,29,18,0,32,0,45,13,74,72,96,73,70,31,62,9,60,55,58,56,52,24,27,30,38,29,30,37,35,29,39,25,16,19,33,23,22,0,0,0,0,0,0,0,3,0,0,0,0,0,0,0,0,0,0,0,0,0,0,0,0,0,18,0,129,129,156,156,318,318,318,311,304,311,304,296,296,291,272,258,230,60,120,60,60,60,197,60,60,60,294,60,253,60,4149,4149,4149,4149,4149,4149,4149,4149,4148,4148,4145,4141,4141,4141,4141,4141,4141,0,4137,4137,4137,4137,4076,2647,29971,29972,29976,29977,5427,2169]} 1. e4 {[%emt 0:00:13]} c5 {[%emt 0:00:17]} 2. Nf3 {[%emt 0:00:12]} d6 {[%emt 0:00:23]} 3. g3 {[%emt 0:05:17]} Nc6 {[%emt 0:02:33]} 4. Bg2 {[%emt 0:02:27]} g6 {[%emt 0:01:53]} 5. O-O {[%emt 0:00:22]} Bg7 {[%emt 0:00:26]} 6. d3 {[%emt 0:10:36]} Bd7 {[%emt 0:10:08]} 7. a4 {[%emt 0:01:53] A04: Unusual lines after 1 Nf3 and King's Indian Attack.} a6 {[%emt 0:00:50]} 8. c3 {[%emt 0:04:10]} Nf6 {[%emt 0:09:23] [#]} 9. Nbd2 $146 {[%emt 0:03:56] The position is equal.} ({Predecessor:} 9. Be3 Qc7 10. Nbd2 O-O 11. Rc1 b5 12. axb5 axb5 13. Ra1 Ng4 14. Re1 Nxe3 15. Rxe3 {½-½ (38) Hoeber,M-Heun,A freechess.de 2021}) 9... O-O {[%emt 0:00:39]} 10. Nc4 {[%emt 0:10:54]} Qc7 {[%emt 0:02:25]} 11. a5 {[%emt 0:08:32]} Rad8 {[%emt 0:03:57]} 12. Re1 {[%emt 0:12:18]} e5 {[%emt 0:02:50]} 13. Bg5 {[%emt 0:11:12]} Be6 {[%emt 0:11:14]} 14. Qa4 {[%emt 0:00:21]} h6 {[%emt 0:00:20]} 15. Bxf6 {[%emt 0:00:30]} Bxf6 {[%emt 0:00:05]} 16. Nb6 {[%emt 0:00:39]} Bg7 {[%emt 0:02:58]} 17. Rac1 {[%emt 0:01:33]} Ne7 {[%emt 0:05:43]} 18. d4 {[%emt 0:01:19]} Bg4 {[%emt 0:01:58]} (18... Nc8 $5 {[%cal Rc8b6]}) 19. Nd2 {[%emt 0:04:13]} Qc6 {[%emt 0:07:49]} (19... exd4 $11 20. cxd4 Bxd4) 20. Qxc6 {[%emt 0:02:02]} Nxc6 {[%emt 0:02:16]} 21. h3 {[%emt 0:00:02] Threatens to win with d5.} Bc8 {[%emt 0:01:15]} 22. dxc5 {[%emt 0:00:09] White is more active.} Nxa5 {[%emt 0:05:57]} 23. b4 {[%emt 0:00:05]} (23. Nxc8 $14 Rxc8 24. Ra1 (24. cxd6 Rfd8 $11)) 23... Nc6 {[%emt 0:01:54]} (23... dxc5 $11 24. Nxc8 Nc6) 24. cxd6 $14 {[%emt 0:00:08]} Rxd6 {[%emt 0:00:17]} 25. Ndc4 {[%emt 0:01:02]} Rdd8 {[%emt 0:01:03]} 26. Rcd1 {[%emt 0:01:00]} Be6 {[%emt 0:03:19]} 27. Bf1 {[%emt 0:00:31]} Bf6 {[%emt 0:01:43]} 28. Nd5 {[%emt 0:03:35] Pair of Knights!} Kg7 {[%emt 0:01:21]} 29. Ncb6 {[%emt 0:01:08]} Ne7 {[%emt 0:03:16]} 30. c4 {[%emt 0:03:53]} Nc6 {[%emt 0:04:17]} 31. Rb1 {[%emt 0:00:01]} Nd4 {[%emt 0:00:24]} 32. Kg2 {[%emt 0:00:14] Inhibits Nf3.} h5 {[%emt 0:02:53]} 33. h4 {[%emt 0:03:39]} g5 {[%emt 0:02:55]} 34. hxg5 {[%emt 0:00:48]} Bxg5 {[%emt 0:00:05]} 35. f4 {[%emt 0:03:30]} Bh6 {[%emt 0:04:08]} 36. f5 {[%emt 0:03:55]} Bxd5 {[%emt 0:01:17]} 37. Nxd5 {[%emt 0:00:03]} Bg5 {[%emt 0:01:28] Inhibits f6+.} 38. Bd3 {[%emt 0:00:46]} Rh8 {[%emt 0:00:47]} 39. Rh1 {[%emt 0:01:26]} Rh6 {[%emt 0:00:08]} 40. Rbf1 {[%emt 0:00:57]} Rdh8 {[%emt 0:01:14]} 41. Rh3 {[%emt 0:06:14]} h4 {[%emt 0:04:09]} 42. gxh4 {[%emt 0:07:19]} Rxh4 {[%emt 0:01:00]} 43. Rxh4 {[%emt 0:02:52]} Rxh4 {[%emt 0:02:03]} 44. Kg3 {[%emt 0:01:44]} Rh6 {[%emt 0:00:52]} 45. b5 {[%emt 0:00:46]} Bh4+ {[%emt 0:02:43]} 46. Kg4 {[%emt 0:02:33]} a5 {[%emt 0:02:08]} 47. c5 {[%emt 0:00:35]} a4 {[%emt 0:03:12]} (47... Bd8 $11) 48. Rh1 $1 $16 {[%emt 0:07:23]} a3 {[%emt 0:04:04][%cal Oa3a2]} 49. Bc4 {[%emt 0:00:26]} ({Don't go for} 49. Rxh4 $2 Rxh4+ 50. Kxh4 a2 51. f6+ Kg6 $19) 49... Bf2 {[%emt 0:04:29]} (49... Bg5 $16 50. f6+ Kh7) 50. Rxh6 $1 $18 {[%emt 0:00:41]} Kxh6 {[%emt 0:00:04] [#]} 51. Nb4 $1 {[%emt 0:00:19]} Nxb5 {[%emt 0:07:34]} 52. Bxb5 {[%emt 0:00:02] And now Bc4 would win.} Bxc5 {[%emt 0:00:09][%mdl 4096] Endgame} 53. Nc2 {[%emt 0:00:58]} f6 {[%emt 0:00:53]} 54. Bc4 {[%emt 0:00:08]} Kg7 {[%emt 0:00:35]} 55. Ne1 {[%emt 0:01:01]} Kh6 {[%emt 0:01:21]} 56. Kf3 $2 {[%emt 0:01:01]} (56. Bd5 $18) 56... Kg5 {[%emt 0:00:23] [#]} (56... b5 $14 57. Bd5 (57. Bxb5 a2 $11) 57... Kg5) 57. Ke2 {[%emt 0:00:21]} (57. Nc2 $1 $16) 57... Kf4 {[%emt 0:02:22]} 58. Bd5 {[%emt 0:00:02] Nd3+ would kill now.} Be7 {[%emt 0:00:44]} ({Black should try} 58... Kg4 $14 59. Kd3 b5) 59. Nd3+ {[%emt 0:00:19]} (59. Bxb7 $18 a2 60. Nc2) 59... Kg3 $14 {[%emt 0:00:14]} 60. Nc1 {[%emt 0:00:47]} b6 {[%emt 0:00:17]} (60... b5 $1 $14 61. Nb3 Kf4) 61. Kd3 $2 {[%emt 0:00:11]} (61. Bc6 $18) 61... Kf3 $2 {[%emt 0:00:17]} (61... b5 $1 $14 62. Ne2+ Kf3) 62. Na2 $2 {[%emt 0:00:23]} (62. Bc6 $18) 62... Bc5 $2 {[%emt 0:00:46][%mdl 8192]} (62... b5 $14 63. Nc3 b4) 63. Bb3 $18 {[%emt 0:01:11]} Bd4 {[%emt 0:00:44]} 64. Nb4 {[%emt 0:00:27]} Kg4 {[%emt 0:01:07]} 65. Nd5 {[%emt 0:00:11]} Kg5 {[%emt 0:00:04]} 66. Kc4 {[%emt 0:00:30]} Bc5 {[%emt 0:00:49]} 67. Kb5 {[%emt 0:00:14]} Bf2 {[%emt 0:00:43]} 68. Ka4 {[%emt 0:00:37]} Bc5 {[%emt 0:00:08]} 69. Ba2 {[%emt 0:00:34]} Bf8 {[%emt 0:00:50]} 70. Bb1 {[%emt 0:01:30]} Bc5 {[%emt 0:00:19]} 71. Ba2 {[%emt 0:00:24]} Bf8 $1 {[%emt 0:00:04]} 72. Kb5 {[%emt 0:00:04]} Bc5 {[%emt 0:00:30]} 73. Kc6 {[%emt 0:00:06]} Bf2 {[%emt 0:01:08]} 74. Kd6 {[%emt 0:00:10]} Bd4 {[%emt 0:02:16]} 75. Ke6 {[%emt 0:00:13]} Bc5 {[%emt 0:00:39]} 76. Nxf6 {[%emt 0:00:19]} Kf4 {[%emt 0:00:16]} 77. Kd5 {[%emt 0:00:15] Weighted Error Value: White=0.15 (very precise) /Black=0.28 (precise)} (77. Nd7 $142 Bb4 78. Bd5) 1-0

[Event "24th Hoogeschool Zeeland 2022"]
[Site "Vlissingen"]
[Date "2022.08.13"]
[Round "9.15"]
[White "Laux, Dominik"]
[Black "Mensing, Adrian"]
[Result "1-0"]
[ECO "B90"]
[WhiteElo "2320"]
[BlackElo "1956"]
[Annotator "TA"]
[PlyCount "141"]
[EventDate "2022.08.05"]
[EventType "swiss"]
[EventCountry "NED"]
[SourceTitle "playchess.com"]
[Source "ChessBase"]
[SourceQuality "1"]
[TimeControl "40/5400+30:1800+30"]

{[%evp 20,141,19,19,25,15,41,37,33,37,62,61,58,61,113,116,114,125,120,120,201,203,189,191,357,358,354,368,328,243,380,348,510,499,496,506,423,371,691,676,675,643,658,641,29989,2423,1981,0,647,647,647,647,647,647,642,645,646,644,641,633,625,625,654,653,652,631,632,585,679,671,672,666,672,671,659,613,924,926,926,877,609,925,854,607,1133,820,813,812,887,434,812,434,1106,433,1206,1205,991,932,1096,1022,29966,29966,29968,29970,29970,29973,29971,29970,29979,29980,29978,29978,29974,29971,29984,29985,29985,29986,29986,29986,29988,29989,29988,952]} 1. e4 {[%emt 0:08:05]} c5 {[%emt 0:00:24]} 2. Nf3 {[%emt 0:00:10]} d6 {[%emt 0:00:19]} 3. d4 {[%emt 0:00:12]} cxd4 {[%emt 0:00:15]} 4. Nxd4 {[%emt 0:00:18]} Nf6 {[%emt 0:00:22]} 5. Nc3 {[%emt 0:00:04]} a6 {[%emt 0:00:23]} 6. Be3 {[%emt 0:01:09]} e5 {[%emt 0:00:16]} 7. Nb3 {[%emt 0:00:09]} Be7 {[%emt 0:00:14]} 8. f3 {[%emt 0:01:17]} Be6 {[%emt 0:00:15]} 9. Qd2 {[%emt 0:01:22]} h5 {[%emt 0:00:23]} 10. Nd5 {[%emt 0:01:38]} Nxd5 {[%emt 0:00:29]} 11. exd5 {[%emt 0:00:07]} Bf5 {[%emt 0:00:22] B90: Sicilian Najdorf: Unusual White 6th moves, 6 Be3 Ng4 and 6 Be3 e5.} 12. Be2 {[%emt 0:00:39]} Nd7 {[%emt 0:00:40] 12...a5 is more advanced technology.} 13. O-O {[%emt 0:03:19]} Rc8 {[%emt 0:04:59] White is slightly better.} 14. c4 {[%emt 0:04:41]} O-O {[%emt 0:04:02]} 15. Na5 $1 {[%emt 0:06:12]} Qc7 {[%emt 0:02:25]} 16. b4 {[%emt 0:02:41]} Bf6 {[%emt 0:08:49] [#]} ({Black should play} 16... Rfe8 $14) 17. Rac1 $1 $16 {[%emt 0:00:42]} b6 {[%emt 0:22:55] Inhibits c5.} 18. Nc6 {[%emt 0:02:33] [#]} a5 $146 {[%emt 0:00:40]} ({Predecessor:} 18... Rfe8 19. f4 Bg4 20. Bxg4 hxg4 21. f5 Nb8 22. b5 Nd7 23. Qe2 Qb7 24. a4 Ra8 25. Qxg4 {0-1 (60) Gonzalez Vidal,Y (2502)-Hernandez Carmenates,H (2524) Havana 2006}) 19. bxa5 {[%emt 0:05:04] White is much more active.} Ra8 {[%emt 0:03:08]} (19... bxa5 $16 20. Bd3 Bxd3 21. Qxd3 Ra8) 20. axb6 $18 {[%emt 0:07:33]} Nxb6 {[%emt 0:02:25]} 21. c5 {[%emt 0:00:52]} Na4 {[%emt 0:02:42]} (21... Nd7 22. cxd6 Qxd6) 22. cxd6 {[%emt 0:04:38]} Qxd6 {[%emt 0:00:46]} 23. Bb5 {[%emt 0:10:47]} Qa3 {[%emt 0:04:42]} 24. Rfe1 {[%emt 0:11:17]} Bd8 {[%emt 0:04:51]} (24... Qb2 $142) 25. Bf2 {[%emt 0:05:44]} Kh7 {[%emt 0:26:30]} (25... Qb2 $142 26. Qxb2 Nxb2 27. Rxe5 g6) 26. Rxe5 {[%emt 0:01:54]} Bg6 {[%emt 0:01:03]} 27. d6 {[%emt 0:05:10]} Bf6 {[%emt 0:01:21]} 28. Re3 {[%emt 0:01:25]} Bc3 $2 {[%emt 0:04:57]} (28... Qb2 29. Qxb2 Nxb2) 29. Rexc3 {[%emt 0:01:20]} Nxc3 {[%emt 0:00:04]} 30. Rxc3 {[%emt 0:00:37]} Qxa2 {[%emt 0:00:35]} 31. Qxa2 {[%emt 0:00:45]} Ra5 {[%emt 0:04:44]} 32. Qa3 (32. Qxa5 $142 Be4 33. fxe4 g6 34. d7 Rh8 35. d8=Q Rg8 {[#]} 36. Qxg8+ $3 {[%mdl 512]} Kxg8 37. Qd8+ Kg7 38. Bd4+ Kh6 39. Qf6 Kh7 40. Qh8#) 32... Rxa3 {[%emt 0:00:00]} 33. d7 $2 {[%emt 0:03:01]} Ra1+ $2 {[%emt 0:00:00][%mdl 8192]} (33... Rxc3 $11 34. Bh4 Bd3 35. Bxd3+ Rxd3) 34. Bf1 {[%emt 0:00:15]} Rd1 {[%emt 0:00:00]} 35. Bc5 {[%emt 0:01:04]} Ra8 {[%emt 0:00:00]} 36. d8=Q {[%emt 0:00:15]} Raxd8 {[%emt 0:00:00]} 37. Nxd8 {[%emt 0:00:07]} Rxd8 {[%emt 0:00:00]} 38. h4 {[%emt 0:00:28]} Bf5 {[%emt 0:00:30]} 39. Kf2 {[%emt 0:00:17]} Rd2+ {[%emt 0:02:29]} 40. Kg3 {[%emt 0:00:10]} Kg6 {[%emt 0:00:55]} 41. Be3 {[%emt 0:30:54]} Rd6 {[%emt 0:30:34]} 42. Bb5 {[%emt 0:01:05]} Kh7 {[%emt 0:00:00]} 43. Ba4 {[%emt 0:00:00]} Bg6 {[%emt 0:00:00]} 44. Bc2 {[%emt 0:00:00]} Rd7 {[%emt 0:00:00]} 45. Bxg6+ {[%emt 0:00:00]} Kxg6 {[%emt 0:00:00][%mdl 4096] Endgame KRB-KR} 46. Rc6+ {[%emt 0:00:00]} f6 {[%emt 0:00:00]} 47. Bf4 {[%emt 0:00:00]} Ra7 {[%emt 0:00:20]} 48. Rc7 {[%emt 0:00:00]} Ra8 {[%emt 0:00:07]} 49. Bd6 {[%emt 0:00:00]} Rd8 {[%emt 0:00:25]} 50. Bc5 {[%emt 0:00:00]} Ra8 {[%emt 0:00:20]} 51. Kh3 {[%emt 0:00:00] And now g4 would win.} Rb8 {[%emt 0:01:58]} 52. Bd6 {[%emt 0:00:00][%cal Oc7g7] White threatens Rxg7+! and mate.} Rd8 {[%emt 0:00:44]} 53. Be7 {[%emt 0:00:00]} Re8 {[%emt 0:01:25]} 54. Bb4 {[%emt 0:00:00]} (54. g4 $142 Rb8 55. Kg3) 54... Rb8 {[%emt 0:00:27]} (54... Rd8 $142 55. Be7 Rb8) 55. Bc5 {[%emt 0:00:00] Black must now prevent g4.} Ra8 {[%emt 0:00:16]} (55... Rd8 $142 56. g4 hxg4+ 57. Kxg4 Kh7) 56. Kg3 {[%emt 0:00:00]} (56. g4 $142 Rg8 57. Kg3) 56... Rb8 {[%emt 0:00:55]} (56... Rd8 $142 57. Kf4 Rh8) 57. Kf4 {[%emt 0:00:00]} Ra8 {[%emt 0:00:29]} 58. g4 {[%emt 0:00:00]} Ra4+ {[%emt 0:01:01]} 59. Kg3 {[%emt 0:00:00] Intending gxh5+ and mate.} Ra8 {[%emt 0:00:19]} 60. gxh5+ {[%emt 0:00:00] White mates.} Kh6 {[%emt 0:00:16]} 61. Be3+ {[%emt 0:00:00]} g5 {[%emt 0:00:58]} 62. hxg6+ {[%emt 0:00:00]} Kxg6 {[%emt 0:00:19]} 63. Rc5 {[%emt 0:00:00]} Ra4 {[%emt 0:00:41]} 64. h5+ {[%emt 0:00:00]} Kf7 {[%emt 0:00:29]} 65. Rc7+ {[%emt 0:00:00]} Ke6 {[%emt 0:00:31]} 66. h6 {[%emt 0:00:00]} Kf5 {[%emt 0:00:15]} 67. h7 {[%emt 0:00:00]} Ra8 {[%emt 0:00:13]} 68. Rg7 {[%emt 0:00:00]} Rh8 {[%emt 0:00:45]} 69. Bd4 {[%emt 0:00:00]} Re8 {[%emt 0:00:21]} 70. Rg8 {[%emt 0:00:00]} Rxg8+ {[%emt 0:00:06]} 71. hxg8=R {[%emt 0:00:00] Black got outplayed after the opening.  Weighted Error Value: White=0.31/Black=0.94} 1-0

[Event "24th Hoogeschool Zeeland 2022"]
[Site "Vlissingen"]
[Date "2022.08.13"]
[Round "9.16"]
[White "Zwirs, Jasper"]
[Black "De Jong, Tom"]
[Result "0-1"]
[ECO "B12"]
[WhiteElo "2105"]
[BlackElo "2203"]
[Annotator "TA"]
[PlyCount "74"]
[EventDate "2022.08.05"]
[EventType "swiss"]
[EventCountry "NED"]
[SourceTitle "playchess.com"]
[Source "ChessBase"]
[SourceQuality "1"]
[TimeControl "40/5400+30:1800+30"]

{[%evp 9,74,6,8,10,11,0,0,-77,-62,-65,-51,-55,-33,-120,-27,-52,-27,-109,-89,-131,-143,-132,-128,-156,-144,-135,-133,-140,-101,-177,-11,-4,0,-39,0,-20,0,-360,-359,-364,-352,-347,-344,-338,-355,-337,-191,-186,-178,-187,-185,-181,-168,-270,-250,-1162,-1167,-1105,-1061,-488,-351,-850,-812,-1492,-1485,-1600,-1380]} 1. e4 {[%emt 0:07:39]} c6 {[%emt 0:00:26]} 2. d4 {[%emt 0:00:05]} d5 {[%emt 0:00:05]} 3. e5 {[%emt 0:00:02]} c5 {[%emt 0:00:06]} 4. dxc5 {[%emt 0:00:04]} e6 {[%emt 0:02:37]} 5. c3 {[%emt 0:05:00]} Nd7 {[%emt 0:07:22] [#]} 6. f4 $146 {[%emt 0:08:40] B12: Caro-Kann: Advance Variation.} ({Predecessor:} 6. Nf3 Nxc5 7. c4 Ne4 8. Bd3 Bb4+ 9. Nbd2 Ne7 10. O-O Nxd2 11. Bxd2 Bxd2 12. Nxd2 O-O {½-½ (32) Lobanov,S (2524)-Demidov,M (2571) Sochi 2022}) 6... Bxc5 {[%emt 0:04:58]} 7. Nf3 {[%emt 0:01:13]} Nh6 {[%emt 0:02:45]} 8. b4 {[%emt 0:09:33]} (8. Bd3 $11) 8... Bb6 $17 {[%emt 0:01:09]} 9. Nd4 {[%emt 0:01:54]} a5 {[%emt 0:02:20]} 10. bxa5 {[%emt 0:11:38]} Rxa5 {[%emt 0:05:58][%cal Od7e5] White must now prevent ...Nxe5!} 11. Ba3 {[%emt 0:12:18] [#]} (11. Nd2 $15) 11... Nc5 {[%emt 0:11:59]} (11... Nxe5 $1 $17 {[%mdl 512] And now ...Nc6 would win.} 12. Nb3 (12. fxe5 Qh4+ 13. g3 Qe4+ 14. Kd2 Bxd4 $11) (12. Bb4 Nc6) 12... Rxa3 $1 13. Nxa3 Nc6) 12. Bb5+ $11 {[%emt 0:11:38]} Bd7 {[%emt 0:03:57]} 13. Bxd7+ {[%emt 0:00:21]} (13. Bxc5 $11 {keeps the balance.} Rxb5 14. Bxb6 Rxb6 15. O-O) 13... Qxd7 $17 {[%emt 0:02:12]} ({Don't play} 13... Kxd7 $6 14. Bxc5 (14. Bb4 Ra6 $15) 14... Rxc5 15. Nd2 $11) 14. O-O {[%emt 0:03:16]} O-O {[%emt 0:01:33]} 15. Bb4 {[%emt 0:02:08]} Ra4 {[%emt 0:09:06][%cal Oa4b4] aiming for ...Rxb4!} 16. a3 {[%emt 0:08:11]} Rfa8 {[%emt 0:01:17][%cal Oa4b4] ...Rxb4! is the strong threat.} 17. Kh1 {[%emt 0:05:55]} Na6 {[%emt 0:09:52]} 18. Nc2 {[%emt 0:00:05]} d4 {[%emt 0:05:36]} 19. Nd2 {[%emt 0:06:59]} (19. Qd3 $17) 19... Qc6 $2 {[%emt 0:06:28]} ({Black should play} 19... Nxb4 $19 20. cxb4 Qd5) 20. cxd4 $11 {[%emt 0:00:39]} Nf5 {[%emt 0:01:47]} 21. Rc1 {[%emt 0:00:38]} Qd5 {[%emt 0:02:14]} 22. Nf3 {[%emt 0:01:19][%cal Ob4d6]} h6 {[%emt 0:02:28]} 23. Ne3 $2 {[%emt 0:01:40][%mdl 8192] [#] Black continues to play with concentration.} Nxe3 $1 $19 {[%emt 0:02:46]} 24. Qxa4 {[%emt 0:00:02]} Nc7 {[%emt 0:01:29]} 25. Qxa8+ {[%emt 0:01:18]} Nxa8 {[%emt 0:00:03] Pair of Knights!} 26. Rc8+ {[%emt 0:00:16]} Kh7 {[%emt 0:01:56]} 27. Re1 {[%emt 0:00:23] [#]} Bxd4 {[%emt 0:05:51]} 28. Rxa8 {[%emt 0:00:51]} Ng4 $40 {[%emt 0:02:03][%mdl 128] Hoping for ...Nf2+. Black goes for the king.} 29. h3 {[%emt 0:00:26]} Nf2+ {[%emt 0:00:50]} 30. Kh2 {[%emt 0:00:04]} Nd3 {[%emt 0:00:30]} 31. Rd1 {[%emt 0:00:58]} (31. Re2 {was necessary.}) 31... Be3 {[%emt 0:01:02]} 32. Ne1 $2 {[%emt 0:00:40]} (32. Bd2 Nb2 33. Bxe3 Qxd1 34. Rf8) 32... Bxf4+ {[%emt 0:00:36]} 33. g3 {[%emt 0:00:07]} Qa2+ {[%emt 0:00:26]} 34. Ng2 {[%emt 0:00:14]} Nf2 {[%emt 0:02:11]} 35. gxf4 $2 {[%emt 0:01:05]} (35. Re1 Nd3 36. gxf4 Nxb4 37. Rf8) 35... Nxd1 {[%emt 0:00:04] Black is clearly winning.} 36. Rd8 {[%emt 0:00:15]} Ne3 {[%emt 0:00:20][%csl Ge3][%cal Ra2g2]} 37. Rd2 {[%emt 0:00:05]} Nf1+ {[%emt 0:00:05] Weighted Error Value: White=0.94/Black=0.27 (precise)} 0-1

[Event "24th Hoogeschool Zeeland 2022"]
[Site "Vlissingen"]
[Date "2022.08.13"]
[Round "9.17"]
[White "Bezemer, Arno"]
[Black "Duson, Robin"]
[Result "1-0"]
[ECO "E10"]
[WhiteElo "2278"]
[BlackElo "2027"]
[Annotator "TA"]
[PlyCount "33"]
[EventDate "2022.08.05"]
[EventType "swiss"]
[EventCountry "NED"]
[SourceTitle "playchess.com"]
[Source "ChessBase"]
[SourceQuality "1"]
[TimeControl "40/5400+30:1800+30"]

{[%evp 9,33,44,45,41,117,127,193,199,266,255,260,247,233,219,335,358,2231,1692,29985,29982,5916,4097,29993,29994,29994,29995]} 1. d4 {[%emt 0:06:55]} Nf6 {[%emt 0:00:13]} 2. c4 {[%emt 0:00:10]} e6 {[%emt 0:00:07]} 3. Nf3 {[%emt 0:00:19]} c5 {[%emt 0:00:16]} 4. d5 {[%emt 0:00:11]} exd5 {[%emt 0:00:17]} 5. cxd5 {[%emt 0:00:05]} g6 {[%emt 0:00:08]} 6. e4 {[%emt 0:00:57] E10: Blumenfeld Gambit.} Nxe4 {[%emt 0:07:21]} (6... Bg7 $14) 7. Bd3 $1 $16 {[%emt 0:01:45]} Nd6 {[%emt 0:04:15] [#]} (7... f5 $16) 8. O-O $1 $18 {[%emt 0:05:07][%mdl 1024] Re1+ is the strong threat. White has strong compensation. White is clearly better.} Be7 {[%emt 0:04:46] [#]} (8... f6 {might work better.} 9. Qc2 Kf7) 9. Bh6 $1 {[%emt 0:00:48] Strongly threatening Re1.} f6 {[%emt 0:02:01] [#]} 10. Re1 $146 {[%emt 0:01:12]} ({Predecessor:} 10. Nc3 Kf7 11. h4 Na6 12. Qd2 c4 13. Bb1 Nc5 14. Qf4 Kg8 15. h5 Nd3 16. Bxd3 cxd3 17. Rfe1 b5 18. Rxe7 {1-0 (18) Murey,J (2490)-Gruenfeld,Y (2550) Jerusalem 1986}) 10... Kf7 {[%emt 0:01:40]} 11. Qc1 {[%emt 0:13:25] aiming for Qf4.} c4 {[%emt 0:19:04]} (11... Bf8 {keeps fighting.} 12. Bxf8 (12. Qxc5 Na6 $16) 12... Qxf8) 12. Bxc4 {[%emt 0:04:22] Hoping for Qf4.} Qc7 $2 {[%emt 0:08:28] [#]} (12... Re8 13. Na3 Na6) 13. Qf4 $1 {[%emt 0:16:28] Intending Ng5+ and mate.} Re8 {[%emt 0:05:47] [#]} (13... Qd8 14. Nc3) 14. Nc3 $1 {[%emt 0:05:00][%cal Bb1c3,Bc3e4,Be4f6][%mdl 32]} Kg8 {[%emt 0:04:33]} (14... Qd8 15. Nb5) 15. Ne4 {[%emt 0:05:35]} Qxc4 {[%emt 0:15:33]} 16. Nxf6+ {[%emt 0:00:32]} Kh8 {[%emt 0:00:40] [#]} 17. Qxd6 $3 {[%emt 0:01:22][%mdl 576] Pin. Black did not feel at home in the position after the opening.  Weighted Error Value: White=0.04 (flawless) /Black=1.19} 1-0